[Event "Late-Titled-Tuesday-Blitz-June-25-2024"]
[Site "Chess.com"]
[Date "2024.06.25"]
[Round "7"]
[White "Juliana_Figueira"]
[Black "Chempiblinka"]
[Result "0-1"]
[WhiteElo "1995"]
[BlackElo "2400"]
[TimeControl "180+1"]
[EndTime "15:16:44 PDT"]
[Termination "Chempiblinka won by resignation"]

1. d4 {[%clk 0:02:59.5]} 1... Nf6 {[%clk 0:02:59.1]} 2. c4 {[%clk 0:02:58.3]}
2... g6 {[%clk 0:02:59.6]} 3. Nc3 {[%clk 0:02:58.2]} 3... Bg7 {[%clk 0:03:00.2]}
4. e4 {[%clk 0:02:58.4]} 4... O-O {[%clk 0:02:58.5]} 5. h3 {[%clk 0:02:58.5]}
5... d6 {[%clk 0:02:58.4]} 6. Be2 {[%clk 0:02:56.6]} 6... c5 {[%clk 0:02:58.1]}
7. d5 {[%clk 0:02:55.3]} 7... e6 {[%clk 0:02:58.2]} 8. Nf3 {[%clk 0:02:54]} 8...
exd5 {[%clk 0:02:57.8]} 9. exd5 {[%clk 0:02:53.5]} 9... Re8 {[%clk 0:02:51.7]}
10. O-O {[%clk 0:02:53.2]} 10... Nfd7 {[%clk 0:02:37.4]} 11. Bf4 {[%clk
0:02:43.6]} 11... Ne5 {[%clk 0:02:37.1]} 12. Nxe5 {[%clk 0:02:41.7]} 12... Bxe5
{[%clk 0:02:38]} 13. Bxe5 {[%clk 0:02:41.1]} 13... Rxe5 {[%clk 0:02:38.9]} 14.
Bg4 {[%clk 0:02:38.6]} 14... Bxg4 {[%clk 0:02:35.5]} 15. Qxg4 {[%clk 0:02:39.5]}
15... Nd7 {[%clk 0:02:27.8]} 16. Rfe1 {[%clk 0:02:32.3]} 16... Qe7 {[%clk
0:02:19]} 17. Rxe5 {[%clk 0:02:21.9]} 17... Nxe5 {[%clk 0:02:19.9]} 18. Qe4
{[%clk 0:02:20]} 18... f5 {[%clk 0:02:00.9]} 19. Qe2 {[%clk 0:02:17.6]} 19...
Qf6 {[%clk 0:01:58.2]} 20. Nb5 {[%clk 0:02:12.8]} 20... a6 {[%clk 0:01:49.9]}
21. Nc7 {[%clk 0:02:12.2]} 21... Rb8 {[%clk 0:01:45.2]} 22. Ne6 {[%clk
0:02:06.3]} 22... b5 {[%clk 0:01:44.7]} 23. f4 {[%clk 0:02:06.3]} 23... Nxc4
{[%clk 0:01:41.1]} 24. Rb1 {[%clk 0:01:59.8]} 24... Nb6 {[%clk 0:01:32.3]} 25.
b3 {[%clk 0:01:55.5]} 25... Nxd5 {[%clk 0:01:31.5]} 26. Ng5 {[%clk 0:01:18.2]}
26... Nc3 {[%clk 0:01:27.7]} 27. Qc2 {[%clk 0:01:13.7]} 27... Nxb1 {[%clk
0:01:21]} 28. Qxb1 {[%clk 0:01:14.6]} 28... Rc8 {[%clk 0:01:17.6]} 29. Qd3
{[%clk 0:01:13.3]} 29... Qd4+ {[%clk 0:01:11.8]} 30. Qxd4 {[%clk 0:01:12]} 30...
cxd4 {[%clk 0:01:12.7]} 31. Kf2 {[%clk 0:01:11.8]} 31... Rc2+ {[%clk 0:01:11.8]}
32. Ke1 {[%clk 0:01:11.5]} 32... Rxa2 {[%clk 0:01:11.7]} 33. Ne6 {[%clk
0:01:11.3]} 33... d3 {[%clk 0:01:10.5]} 34. Nd4 {[%clk 0:01:10.2]} 34... Rxg2
{[%clk 0:01:10.2]} 35. Kf1 {[%clk 0:01:07.4]} 35... Rb2 {[%clk 0:01:09.3]} 36.
Ke1 {[%clk 0:01:07.2]} 36... Kf7 {[%clk 0:01:07.8]} 37. Kd1 {[%clk 0:01:06.7]}
37... Ke7 {[%clk 0:01:07.6]} 38. Nc6+ {[%clk 0:01:06.5]} 38... Kd7 {[%clk
0:01:07.2]} 39. Nb8+ {[%clk 0:01:03.4]} 39... Kc7 {[%clk 0:01:06.2]} 40. Nxa6+
{[%clk 0:01:03.4]} 40... Kb7 {[%clk 0:01:05.4]} 41. Nb4 {[%clk 0:01:03.5]} 41...
Rxb3 {[%clk 0:01:04.3]} 42. Nd5 {[%clk 0:01:03.3]} 42... d2 {[%clk 0:01:02.5]}
43. Kxd2 {[%clk 0:01:02.4]} 43... Rxh3 {[%clk 0:01:02.9]} 44. Nf6 {[%clk
0:01:01.8]} 44... h5 {[%clk 0:01:01.9]} 45. Ne8 {[%clk 0:00:59]} 45... Kc6
{[%clk 0:01:01.3]} 46. Ng7 {[%clk 0:00:56.6]} 46... Rf3 {[%clk 0:00:58.7]} 47.
Ne6 {[%clk 0:00:56.1]} 47... Ra3 {[%clk 0:00:56.4]} 48. Nf8 {[%clk 0:00:54.8]}
48... b4 {[%clk 0:00:55.8]} 49. Nxg6 {[%clk 0:00:54.2]} 49... b3 {[%clk
0:00:55.3]} 50. Kc3 {[%clk 0:00:50.6]} 50... Kc5 {[%clk 0:00:47.9]} 51. Ne7
{[%clk 0:00:49.9]} 51... d5 {[%clk 0:00:44.7]} 52. Nxf5 {[%clk 0:00:49.5]} 52...
Ra4 {[%clk 0:00:35.1]} 53. Ng3 {[%clk 0:00:39.5]} 53... h4 {[%clk 0:00:34.3]}
54. Ne2 {[%clk 0:00:35.2]} 54... h3 {[%clk 0:00:32.6]} 55. Kxb3 {[%clk
0:00:33.9]} 55... Rb4+ {[%clk 0:00:31.7]} 56. Kc3 {[%clk 0:00:34]} 56... h2
{[%clk 0:00:31.9]} 57. Ng3 {[%clk 0:00:33.8]} 57... Rxf4 {[%clk 0:00:31.4]} 58.
Kd2 {[%clk 0:00:32.9]} 58... Rg4 {[%clk 0:00:30.4]} 59. Nh1 {[%clk 0:00:30.9]}
59... Rg1 {[%clk 0:00:30.9]} 60. Ke2 {[%clk 0:00:30.6]} 60... Rxh1 {[%clk
0:00:30]} 61. Kf2 {[%clk 0:00:31.1]} 61... Rd1 {[%clk 0:00:28.8]} 62. Kg2 {[%clk
0:00:31.2]} 62... h1=Q+ {[%clk 0:00:28.7]} 0-1

[Event "Late-Titled-Tuesday-Blitz-June-25-2024"]
[Site "Chess.com"]
[Date "2024.06.25"]
[Round "7"]
[White "alexrustemov"]
[Black "Yurovskykh_Oleksandr"]
[Result "1-0"]
[WhiteElo "2829"]
[BlackElo "2618"]
[TimeControl "180+1"]
[EndTime "15:16:45 PDT"]
[Termination "alexrustemov won by resignation"]

1. d4 {[%clk 0:03:00.9]} 1... d5 {[%clk 0:02:55]} 2. c4 {[%clk 0:03:00.5]} 2...
dxc4 {[%clk 0:02:54.5]} 3. Nf3 {[%clk 0:02:59.9]} 3... Nf6 {[%clk 0:02:53.9]} 4.
e3 {[%clk 0:03:00]} 4... e6 {[%clk 0:02:49.8]} 5. Bxc4 {[%clk 0:03:00.2]} 5...
c5 {[%clk 0:02:50.3]} 6. O-O {[%clk 0:03:00.3]} 6... Nc6 {[%clk 0:02:50.6]} 7.
Nc3 {[%clk 0:02:56.6]} 7... cxd4 {[%clk 0:02:50.6]} 8. exd4 {[%clk 0:02:49.2]}
8... Be7 {[%clk 0:02:48.6]} 9. d5 {[%clk 0:02:46.8]} 9... exd5 {[%clk
0:02:48.4]} 10. Nxd5 {[%clk 0:02:47.3]} 10... Nxd5 {[%clk 0:02:48.7]} 11. Qxd5
{[%clk 0:02:47.5]} 11... Qxd5 {[%clk 0:02:47.3]} 12. Bxd5 {[%clk 0:02:48]} 12...
O-O {[%clk 0:02:46.9]} 13. Bf4 {[%clk 0:02:43.2]} 13... Bf6 {[%clk 0:02:43.9]}
14. Bxc6 {[%clk 0:02:38.7]} 14... bxc6 {[%clk 0:02:43.9]} 15. Be5 {[%clk
0:02:39.2]} 15... Bg4 {[%clk 0:02:26.9]} 16. Bxf6 {[%clk 0:02:38.2]} 16... Bxf3
{[%clk 0:02:20.6]} 17. Bxg7 {[%clk 0:02:25.7]} 17... Kxg7 {[%clk 0:02:08.4]} 18.
gxf3 {[%clk 0:02:24.7]} 18... Rfb8 {[%clk 0:02:07.9]} 19. Rab1 {[%clk
0:02:20.8]} 19... Rb6 {[%clk 0:01:48.5]} 20. Rfc1 {[%clk 0:02:21.2]} 20... Rab8
{[%clk 0:01:49]} 21. b3 {[%clk 0:02:17.4]} 21... a5 {[%clk 0:01:40.3]} 22. Rc4
{[%clk 0:02:16.7]} 22... Rd8 {[%clk 0:01:14.7]} 23. Rb2 {[%clk 0:02:07.9]} 23...
Rd3 {[%clk 0:00:48.9]} 24. Kg2 {[%clk 0:02:06.9]} 24... Rb4 {[%clk 0:00:43.1]}
25. Rbc2 {[%clk 0:02:03.7]} 25... Rxc4 {[%clk 0:00:14.8]} 26. Rxc4 {[%clk
0:02:03]} 26... Rd2 {[%clk 0:00:13.6]} 27. Ra4 {[%clk 0:02:01.2]} 27... Rd5
{[%clk 0:00:14.2]} 28. f4 {[%clk 0:01:57.8]} 28... Rb5 {[%clk 0:00:13.6]} 29.
Rc4 {[%clk 0:01:55.7]} 29... c5 {[%clk 0:00:13.2]} 30. Kf3 {[%clk 0:01:53.1]}
30... Kf6 {[%clk 0:00:13.5]} 31. Ke4 {[%clk 0:01:47.1]} 31... Ke6 {[%clk
0:00:13.2]} 32. f5+ {[%clk 0:01:45]} 32... Kd6 {[%clk 0:00:13.5]} 33. Kd3 {[%clk
0:01:24.2]} 33... Ke5 {[%clk 0:00:06.1]} 34. Rh4 {[%clk 0:01:23.8]} 34... Kxf5
{[%clk 0:00:04.7]} 35. Rxh7 {[%clk 0:01:23.6]} 35... Kg6 {[%clk 0:00:04.5]} 36.
Rh4 {[%clk 0:01:22.7]} 36... Kf5 {[%clk 0:00:03.6]} 37. Ke3 {[%clk 0:01:17.9]}
37... Ke5 {[%clk 0:00:03.7]} 38. Rh5+ {[%clk 0:01:12.3]} 38... Kd6 {[%clk
0:00:02.6]} 39. Rh6+ {[%clk 0:01:06.7]} 39... Kd5 {[%clk 0:00:02.4]} 40. Ra6
{[%clk 0:01:06.4]} 40... Ke5 {[%clk 0:00:02.3]} 41. h4 {[%clk 0:01:03.2]} 41...
Kf5 {[%clk 0:00:02.2]} 42. h5 {[%clk 0:01:02.6]} 42... f6 {[%clk 0:00:02.1]} 43.
h6 {[%clk 0:01:00.3]} 43... Kg6 {[%clk 0:00:02.4]} 44. h7 {[%clk 0:01:00.2]}
44... Kxh7 {[%clk 0:00:02.5]} 45. Rxf6 {[%clk 0:01:00.6]} 45... a4 {[%clk
0:00:01.7]} 46. bxa4 {[%clk 0:00:54.1]} 46... Rb2 {[%clk 0:00:02.6]} 47. Rf4
{[%clk 0:00:44.5]} 47... Rxa2 {[%clk 0:00:02.7]} 48. Kd3 {[%clk 0:00:45.2]}
48... Kg7 {[%clk 0:00:02.9]} 49. Kc3 {[%clk 0:00:44.7]} 49... Ra1 {[%clk
0:00:01.4]} 50. Kb2 {[%clk 0:00:43.1]} 50... Rh1 {[%clk 0:00:01]} 51. Rf5 {[%clk
0:00:40.5]} 51... Rh8 {[%clk 0:00:01.7]} 52. Rxc5 {[%clk 0:00:39.7]} 52... Rf8
{[%clk 0:00:01.8]} 53. Rc2 {[%clk 0:00:37.9]} 53... Rb8+ {[%clk 0:00:02.3]} 54.
Ka3 {[%clk 0:00:37.2]} 54... Kf6 {[%clk 0:00:02.8]} 55. a5 {[%clk 0:00:36.4]}
55... Ra8 {[%clk 0:00:03.4]} 56. Ka4 {[%clk 0:00:36.3]} 1-0

[Event "Late-Titled-Tuesday-Blitz-June-25-2024"]
[Site "Chess.com"]
[Date "2024.06.25"]
[Round "7"]
[White "Gangster-accountant01"]
[Black "NailBashirli"]
[Result "1-0"]
[WhiteElo "2591"]
[BlackElo "2750"]
[TimeControl "180+1"]
[EndTime "15:16:45 PDT"]
[Termination "Gangster-accountant01 won on time"]

1. d4 {[%clk 0:02:58.9]} 1... Nf6 {[%clk 0:02:59.6]} 2. c4 {[%clk 0:02:55.2]}
2... e6 {[%clk 0:02:59.6]} 3. Nc3 {[%clk 0:02:55.2]} 3... Bb4 {[%clk 0:02:57.9]}
4. e3 {[%clk 0:02:55.3]} 4... O-O {[%clk 0:02:57.7]} 5. Bd2 {[%clk 0:02:39.8]}
5... b6 {[%clk 0:02:54.3]} 6. Nf3 {[%clk 0:02:29]} 6... Bb7 {[%clk 0:02:15.8]}
7. Bd3 {[%clk 0:02:26.8]} 7... d5 {[%clk 0:02:14.5]} 8. cxd5 {[%clk 0:02:17.9]}
8... exd5 {[%clk 0:02:13]} 9. O-O {[%clk 0:02:07.6]} 9... Nbd7 {[%clk
0:02:05.7]} 10. Ne5 {[%clk 0:02:05.7]} 10... Re8 {[%clk 0:02:00.8]} 11. f4
{[%clk 0:02:01.5]} 11... Bxc3 {[%clk 0:01:58.8]} 12. bxc3 {[%clk 0:02:00]} 12...
Ne4 {[%clk 0:01:59.1]} 13. Bxe4 {[%clk 0:01:48.5]} 13... dxe4 {[%clk 0:01:57.4]}
14. Qh5 {[%clk 0:01:48.5]} 14... Qe7 {[%clk 0:01:48.1]} 15. c4 {[%clk
0:01:41.4]} 15... f6 {[%clk 0:01:46.1]} 16. Nxd7 {[%clk 0:01:25.9]} 16... Qxd7
{[%clk 0:01:42.4]} 17. f5 {[%clk 0:01:22.9]} 17... Qf7 {[%clk 0:01:35]} 18. Qe2
{[%clk 0:01:16.6]} 18... Ba6 {[%clk 0:01:35]} 19. Rac1 {[%clk 0:01:15]} 19... c5
{[%clk 0:01:35.3]} 20. dxc5 {[%clk 0:01:09.3]} 20... bxc5 {[%clk 0:01:36.2]} 21.
Rf4 {[%clk 0:01:09]} 21... Rad8 {[%clk 0:01:34.6]} 22. Ba5 {[%clk 0:01:04.3]}
22... Rd6 {[%clk 0:01:23]} 23. Rh4 {[%clk 0:00:48.5]} 23... h6 {[%clk
0:01:14.9]} 24. Rg4 {[%clk 0:00:43.1]} 24... Qd7 {[%clk 0:01:11.4]} 25. Bc3
{[%clk 0:00:25.8]} 25... Qxf5 {[%clk 0:01:10.1]} 26. Rf1 {[%clk 0:00:25.6]}
26... Qd7 {[%clk 0:00:13.1]} 27. Bxf6 {[%clk 0:00:21.5]} 27... g5 {[%clk
0:00:09.9]} 28. Bxg5 {[%clk 0:00:18.4]} 28... Rg6 {[%clk 0:00:09.9]} 29. Rf6
{[%clk 0:00:13.1]} 29... Rxg5 {[%clk 0:00:07.5]} 30. Rxg5+ {[%clk 0:00:13.4]}
30... hxg5 {[%clk 0:00:08]} 31. Rg6+ {[%clk 0:00:13.8]} 31... Kf7 {[%clk
0:00:07.2]} 32. Rxa6 {[%clk 0:00:13.8]} 32... Rd8 {[%clk 0:00:05.3]} 33. Qh5+
{[%clk 0:00:12.1]} 33... Ke7 {[%clk 0:00:04.3]} 34. Qxg5+ {[%clk 0:00:11.2]}
34... Ke8 {[%clk 0:00:03.8]} 35. Qe5+ {[%clk 0:00:10.7]} 35... Kf7 {[%clk
0:00:02.8]} 36. Rf6+ {[%clk 0:00:11]} 36... Kg8 {[%clk 0:00:03.4]} 37. Qg5+
{[%clk 0:00:11.5]} 1-0

[Event "Late-Titled-Tuesday-Blitz-June-25-2024"]
[Site "Chess.com"]
[Date "2024.06.25"]
[Round "7"]
[White "Connectedcloud"]
[Black "Flaccidmoves"]
[Result "1-0"]
[WhiteElo "2346"]
[BlackElo "2520"]
[TimeControl "180+1"]
[EndTime "15:16:45 PDT"]
[Termination "Connectedcloud won by checkmate"]

1. Nf3 {[%clk 0:02:59.9]} 1... e6 {[%clk 0:02:58.3]} 2. c4 {[%clk 0:02:56.6]}
2... d5 {[%clk 0:02:58]} 3. e3 {[%clk 0:02:53.6]} 3... c5 {[%clk 0:02:57.1]} 4.
b3 {[%clk 0:02:53.2]} 4... d4 {[%clk 0:02:52.9]} 5. exd4 {[%clk 0:02:43.1]} 5...
cxd4 {[%clk 0:02:53.8]} 6. d3 {[%clk 0:02:43.8]} 6... Nc6 {[%clk 0:02:53.4]} 7.
g3 {[%clk 0:02:43.4]} 7... Nf6 {[%clk 0:02:51.1]} 8. Bg2 {[%clk 0:02:42.5]} 8...
Be7 {[%clk 0:02:49.3]} 9. O-O {[%clk 0:02:41.9]} 9... O-O {[%clk 0:02:49]} 10.
a3 {[%clk 0:02:42.4]} 10... a5 {[%clk 0:02:47.8]} 11. Re1 {[%clk 0:02:42.1]}
11... Nd7 {[%clk 0:02:44.4]} 12. Nbd2 {[%clk 0:02:38.2]} 12... e5 {[%clk
0:02:41.9]} 13. Rb1 {[%clk 0:02:27.7]} 13... Re8 {[%clk 0:02:28.2]} 14. Qc2
{[%clk 0:02:14.9]} 14... f5 {[%clk 0:02:19.3]} 15. c5 {[%clk 0:01:48.1]} 15...
Bf6 {[%clk 0:01:41.4]} 16. b4 {[%clk 0:01:45.4]} 16... axb4 {[%clk 0:01:40.2]}
17. axb4 {[%clk 0:01:45.6]} 17... Nf8 {[%clk 0:01:34.8]} 18. Nc4 {[%clk
0:01:39.2]} 18... e4 {[%clk 0:01:30.2]} 19. dxe4 {[%clk 0:01:27.5]} 19... d3
{[%clk 0:01:30]} 20. Qb3 {[%clk 0:01:26.8]} 20... fxe4 {[%clk 0:01:22.6]} 21.
Nfd2 {[%clk 0:00:52.7]} 21... Nd4 {[%clk 0:01:20.4]} 22. Qd1 {[%clk 0:00:53.3]}
22... Ne2+ {[%clk 0:01:13.1]} 23. Rxe2 {[%clk 0:00:53.6]} 23... dxe2 {[%clk
0:01:13.1]} 24. Qxe2 {[%clk 0:00:54.3]} 24... Qd3 {[%clk 0:01:02]} 25. Qe1
{[%clk 0:00:43.1]} 25... Bf5 {[%clk 0:00:45.9]} 26. Rb3 {[%clk 0:00:37]} 26...
Qc2 {[%clk 0:00:45.3]} 27. Ne3 {[%clk 0:00:33.6]} 27... Qa2 {[%clk 0:00:24.7]}
28. Nxf5 {[%clk 0:00:31]} 28... Rad8 {[%clk 0:00:24.5]} 29. Re3 {[%clk
0:00:24.2]} 29... Qc2 {[%clk 0:00:22.7]} 30. Bxe4 {[%clk 0:00:21.4]} 30... Qa2
{[%clk 0:00:18.1]} 31. Bb1 {[%clk 0:00:20.4]} 31... Qf7 {[%clk 0:00:13.6]} 32.
Rxe8 {[%clk 0:00:19.9]} 32... Rxe8 {[%clk 0:00:14.5]} 33. Qf1 {[%clk 0:00:19.5]}
33... Qd5 {[%clk 0:00:13.3]} 34. Nd6 {[%clk 0:00:18.7]} 34... Re7 {[%clk
0:00:10.3]} 35. N2e4 {[%clk 0:00:17.2]} 35... Ne6 {[%clk 0:00:09.3]} 36. Qc4
{[%clk 0:00:16.9]} 36... Qxc4 {[%clk 0:00:09.1]} 37. Nxc4 {[%clk 0:00:17.5]}
37... Nd4 {[%clk 0:00:09.7]} 38. Nxf6+ {[%clk 0:00:17.7]} 38... gxf6 {[%clk
0:00:09.5]} 39. Be3 {[%clk 0:00:18.4]} 39... Nc6 {[%clk 0:00:07.9]} 40. b5
{[%clk 0:00:18.3]} 40... Ne5 {[%clk 0:00:07.6]} 41. Nxe5 {[%clk 0:00:18.1]}
41... fxe5 {[%clk 0:00:08.5]} 42. Be4 {[%clk 0:00:18.1]} 42... Kf7 {[%clk
0:00:07.6]} 43. c6 {[%clk 0:00:18.6]} 43... bxc6 {[%clk 0:00:07.7]} 44. bxc6
{[%clk 0:00:19.2]} 44... Ke6 {[%clk 0:00:07.6]} 45. Bb6 {[%clk 0:00:19.6]} 45...
Kd6 {[%clk 0:00:06.2]} 46. c7 {[%clk 0:00:19.9]} 46... Rxc7 {[%clk 0:00:04.5]}
47. Bxc7+ {[%clk 0:00:20.4]} 47... Kxc7 {[%clk 0:00:05.4]} 48. Bxh7 {[%clk
0:00:20.7]} 48... Kd6 {[%clk 0:00:06.3]} 49. Be4 {[%clk 0:00:21]} 49... Ke7
{[%clk 0:00:07.2]} 50. h4 {[%clk 0:00:21.4]} 50... Kf6 {[%clk 0:00:07.8]} 51. g4
{[%clk 0:00:22.3]} 51... Kg7 {[%clk 0:00:07.9]} 52. g5 {[%clk 0:00:23.2]} 52...
Kg8 {[%clk 0:00:08.1]} 53. h5 {[%clk 0:00:24.1]} 53... Kh8 {[%clk 0:00:08.6]}
54. Kg2 {[%clk 0:00:25]} 54... Kg7 {[%clk 0:00:09.5]} 55. Kg3 {[%clk 0:00:25.9]}
55... Kh8 {[%clk 0:00:10.4]} 56. Kg4 {[%clk 0:00:26.8]} 56... Kg8 {[%clk
0:00:11]} 57. g6 {[%clk 0:00:27.3]} 57... Kg7 {[%clk 0:00:11.9]} 58. Kg5 {[%clk
0:00:28.1]} 58... Kh8 {[%clk 0:00:12.8]} 59. h6 {[%clk 0:00:28.7]} 59... Kg8
{[%clk 0:00:13.4]} 60. Bd5+ {[%clk 0:00:29.4]} 60... Kh8 {[%clk 0:00:14.3]} 61.
g7+ {[%clk 0:00:30]} 61... Kh7 {[%clk 0:00:14.7]} 62. g8=Q# {[%clk 0:00:30.9]}
1-0

[Event "Late-Titled-Tuesday-Blitz-June-25-2024"]
[Site "Chess.com"]
[Date "2024.06.25"]
[Round "7"]
[White "FloMasterAAK"]
[Black "Jahonas"]
[Result "1-0"]
[WhiteElo "2607"]
[BlackElo "2434"]
[TimeControl "180+1"]
[EndTime "15:16:45 PDT"]
[Termination "FloMasterAAK won by resignation"]

1. Nf3 {[%clk 0:03:00.9]} 1... d5 {[%clk 0:02:59.8]} 2. e3 {[%clk 0:03:00.7]}
2... Nf6 {[%clk 0:03:00.1]} 3. c4 {[%clk 0:03:00.9]} 3... e6 {[%clk 0:02:59.6]}
4. b3 {[%clk 0:03:00.9]} 4... Be7 {[%clk 0:02:59.7]} 5. Bb2 {[%clk 0:03:01.1]}
5... b6 {[%clk 0:03:00.1]} 6. g3 {[%clk 0:03:00.9]} 6... Bb7 {[%clk 0:03:00.1]}
7. Bg2 {[%clk 0:03:01.4]} 7... c5 {[%clk 0:03:00.5]} 8. O-O {[%clk 0:03:01.8]}
8... dxc4 {[%clk 0:02:59.3]} 9. bxc4 {[%clk 0:03:01.6]} 9... O-O {[%clk
0:02:58.6]} 10. Nc3 {[%clk 0:02:59.1]} 10... Nc6 {[%clk 0:02:58.3]} 11. d3
{[%clk 0:02:59.2]} 11... Nb4 {[%clk 0:02:50.2]} 12. Ne1 {[%clk 0:02:59.4]} 12...
Bxg2 {[%clk 0:02:48.7]} 13. Kxg2 {[%clk 0:03:00.3]} 13... Qd7 {[%clk 0:02:47.9]}
14. Qe2 {[%clk 0:02:59.1]} 14... Rfd8 {[%clk 0:02:46.1]} 15. Rd1 {[%clk
0:02:57.5]} 15... Rac8 {[%clk 0:02:43.9]} 16. a3 {[%clk 0:02:56.6]} 16... Nc6
{[%clk 0:02:43.1]} 17. f4 {[%clk 0:02:54.8]} 17... Na5 {[%clk 0:02:39.7]} 18.
Nf3 {[%clk 0:02:48.7]} 18... h6 {[%clk 0:02:37.4]} 19. h3 {[%clk 0:02:41.5]}
19... a6 {[%clk 0:02:30.5]} 20. a4 {[%clk 0:02:40.9]} 20... Nc6 {[%clk
0:02:28.9]} 21. g4 {[%clk 0:02:39.2]} 21... Nb4 {[%clk 0:02:22.5]} 22. g5 {[%clk
0:02:33.6]} 22... hxg5 {[%clk 0:02:21.3]} 23. fxg5 {[%clk 0:02:34.2]} 23... Ne8
{[%clk 0:02:17.3]} 24. Ne5 {[%clk 0:02:33]} 24... Qb7+ {[%clk 0:02:17]} 25. e4
{[%clk 0:02:33.5]} 25... Nd6 {[%clk 0:02:14.2]} 26. Qh5 {[%clk 0:02:28.9]} 26...
Rf8 {[%clk 0:01:32.3]} 27. g6 {[%clk 0:02:25.7]} 27... fxg6 {[%clk 0:01:30]} 28.
Nxg6 {[%clk 0:02:26.6]} 28... Rf6 {[%clk 0:01:08.3]} 29. Ne2 {[%clk 0:02:04.1]}
29... Rxg6+ {[%clk 0:00:59.9]} 30. Qxg6 {[%clk 0:02:03.2]} 30... Bf8 {[%clk
0:00:49]} 31. Nf4 {[%clk 0:01:59.3]} 31... Qf7 {[%clk 0:00:39.5]} 32. Qxf7+
{[%clk 0:01:59]} 32... Nxf7 {[%clk 0:00:35.3]} 33. Nxe6 {[%clk 0:01:57.5]} 33...
Re8 {[%clk 0:00:32.9]} 34. Nxf8 {[%clk 0:01:52.3]} 34... Rxf8 {[%clk 0:00:33.1]}
35. Bc3 {[%clk 0:01:47.9]} 35... Nc6 {[%clk 0:00:32]} 36. Rf5 {[%clk 0:01:45.3]}
36... Re8 {[%clk 0:00:29.1]} 37. Rb1 {[%clk 0:01:34.8]} 37... Nce5 {[%clk
0:00:25]} 38. Rd1 {[%clk 0:00:21.5]} 38... Ng6 {[%clk 0:00:23.9]} 39. Kh2 {[%clk
0:00:19.7]} 39... Nh6 {[%clk 0:00:23.1]} 40. Rd5 {[%clk 0:00:19.9]} 40... Nf4
{[%clk 0:00:22.4]} 41. Rd6 {[%clk 0:00:19.1]} 41... Ne2 {[%clk 0:00:21]} 42. Bd2
{[%clk 0:00:18]} 42... Nd4 {[%clk 0:00:20.1]} 43. Bxh6 {[%clk 0:00:17.2]} 43...
gxh6 {[%clk 0:00:19.6]} 44. Rxb6 {[%clk 0:00:17.8]} 44... Kh7 {[%clk 0:00:16.1]}
45. Rxa6 {[%clk 0:00:18]} 45... Rg8 {[%clk 0:00:15.8]} 46. Rb1 {[%clk
0:00:17.6]} 46... Nf3+ {[%clk 0:00:15.9]} 47. Kh1 {[%clk 0:00:17.6]} 47... Rg5
{[%clk 0:00:12.1]} 48. Rb7+ {[%clk 0:00:17.5]} 1-0

[Event "Late-Titled-Tuesday-Blitz-June-25-2024"]
[Site "Chess.com"]
[Date "2024.06.25"]
[Round "7"]
[White "ChadBiryani"]
[Black "jcmesafischer"]
[Result "1-0"]
[WhiteElo "2513"]
[BlackElo "2362"]
[TimeControl "180+1"]
[EndTime "15:16:45 PDT"]
[Termination "ChadBiryani won by checkmate"]

1. c4 {[%clk 0:03:00.9]} 1... Nf6 {[%clk 0:02:53.5]} 2. g3 {[%clk 0:03:00.7]}
2... e6 {[%clk 0:02:53.2]} 3. Bg2 {[%clk 0:03:01]} 3... d5 {[%clk 0:02:53.6]} 4.
Nf3 {[%clk 0:03:01.5]} 4... Be7 {[%clk 0:02:52.6]} 5. O-O {[%clk 0:03:01.6]}
5... O-O {[%clk 0:02:52]} 6. b3 {[%clk 0:03:01.8]} 6... d4 {[%clk 0:02:51.5]} 7.
e3 {[%clk 0:02:58.9]} 7... c5 {[%clk 0:02:51.9]} 8. Bb2 {[%clk 0:02:52]} 8...
Nc6 {[%clk 0:02:49.6]} 9. exd4 {[%clk 0:02:51.1]} 9... cxd4 {[%clk 0:02:47.3]}
10. Re1 {[%clk 0:02:51.7]} 10... Re8 {[%clk 0:02:41.1]} 11. Na3 {[%clk
0:02:49.6]} 11... Bf8 {[%clk 0:02:23.3]} 12. Nc2 {[%clk 0:02:44.3]} 12... e5
{[%clk 0:02:22.3]} 13. d3 {[%clk 0:02:43.9]} 13... a5 {[%clk 0:02:20.6]} 14. a3
{[%clk 0:02:43.8]} 14... Qb6 {[%clk 0:02:06.8]} 15. Rb1 {[%clk 0:02:38.1]} 15...
Nd7 {[%clk 0:01:54.3]} 16. Nd2 {[%clk 0:02:29.6]} 16... Nc5 {[%clk 0:01:45.5]}
17. Qe2 {[%clk 0:02:17.4]} 17... Bf5 {[%clk 0:01:26]} 18. Ne4 {[%clk 0:02:06.6]}
18... Bxe4 {[%clk 0:01:19.5]} 19. Bxe4 {[%clk 0:02:05.6]} 19... Nxb3 {[%clk
0:01:17.2]} 20. a4 {[%clk 0:01:48.7]} 20... Qc7 {[%clk 0:00:35.3]} 21. Na3
{[%clk 0:01:46.6]} 21... Nc5 {[%clk 0:00:34.5]} 22. Nb5 {[%clk 0:01:46.6]} 22...
Qd7 {[%clk 0:00:33.9]} 23. Bd5 {[%clk 0:01:41.3]} 23... Nb4 {[%clk 0:00:23.5]}
24. Bg2 {[%clk 0:01:40.4]} 24... Nbxd3 {[%clk 0:00:21.5]} 25. Red1 {[%clk
0:01:32.4]} 25... Nxb2 {[%clk 0:00:19.9]} 26. Rxb2 {[%clk 0:01:32.6]} 26... Nxa4
{[%clk 0:00:20.1]} 27. Rbd2 {[%clk 0:01:33.2]} 27... Rac8 {[%clk 0:00:18.6]} 28.
Be4 {[%clk 0:01:25]} 28... Nc5 {[%clk 0:00:16]} 29. Bd5 {[%clk 0:01:25]} 29...
a4 {[%clk 0:00:14.6]} 30. Qf3 {[%clk 0:01:21.9]} 30... g6 {[%clk 0:00:14.8]} 31.
h4 {[%clk 0:01:17.3]} 31... Bg7 {[%clk 0:00:15.1]} 32. h5 {[%clk 0:01:17.9]}
32... Kf8 {[%clk 0:00:12.6]} 33. Qg2 {[%clk 0:01:17.5]} 33... f5 {[%clk
0:00:12.5]} 34. hxg6 {[%clk 0:01:12.6]} 34... hxg6 {[%clk 0:00:13.4]} 35. Qh3
{[%clk 0:01:13.1]} 35... Qe7 {[%clk 0:00:12.2]} 36. Qh7 {[%clk 0:01:05.1]} 36...
Qf6 {[%clk 0:00:10.5]} 37. Re2 {[%clk 0:01:00.6]} 37... Ke7 {[%clk 0:00:09.1]}
38. Nxd4 {[%clk 0:00:58.6]} 38... Rh8 {[%clk 0:00:08.4]} 39. Rxe5+ {[%clk
0:00:49.3]} 39... Qxe5 {[%clk 0:00:08.8]} 40. Qxg6 {[%clk 0:00:50]} 40... f4
{[%clk 0:00:05.7]} 41. Nf5+ {[%clk 0:00:41.4]} 41... Kd8 {[%clk 0:00:06.3]} 42.
Qb6+ {[%clk 0:00:17]} 42... Rc7 {[%clk 0:00:03.7]} 43. Be4+ {[%clk 0:00:08.1]}
43... Ke8 {[%clk 0:00:03.2]} 44. Qg6+ {[%clk 0:00:08.8]} 44... Kf8 {[%clk
0:00:03.2]} 45. Rd8+ {[%clk 0:00:07.8]} 45... Qe8 {[%clk 0:00:02.4]} 46. Rxe8#
{[%clk 0:00:08.4]} 1-0